Cogmind - Beta 14 @@@ ROGUE MODE // 2024.09.05 @ 01:21:25 Player: FauxMaasks Result: Self-destructed Performance ------------- Evolutions (1) 500 Regions Visited (3) 600 Robots Destroyed (22) 110 Value Destroyed (483) 483 Prototype IDs (0) 0 Alien Tech Used (0) 0 Bonus (-4) -4 TOTAL SCORE: 1689 Bonus ------- Follower Combat Kills 32 Friendly Fire -36 Cogmind --------- Core Integrity 213/400 Matter 300/300 Energy 100/100 System Corruption 0% Temperature Cool (0) Movement Core (50) Location -9/Materials Parts ------- > --- POWER (1) -------- (None) > --- PROPULSION (3) --- (None) > --- UTILITY (3) ------ (None) > --- WEAPON (2) ------- (None) > --- INVENTORY (5) ---- Improved Ion Engine Improved Heat Sink Advanced Targeting Computer Advanced Targeting Computer Beam Rifle Peak State ------------ > --- POWER ------------ Improved Ion Engine > --- PROPULSION ------- Aluminum Leg Aluminum Leg Improved Aluminum Leg > --- UTILITY ---------- Large Storage Unit Advanced Targeting Computer Light Armor Plating > --- WEAPON ----------- Particle Gun Assault Rifle > --- INVENTORY -------- Light Ion Engine Improved Heat Sink Small Battery Visual Processing Unit Sensor Array Signal Interpreter Improved Terrain Scanner Advanced Targeting Computer Advanced Targeting Computer Particle Gun Beam Cannon Assault Rifle Mining Laser [Rating: 16] Favorites ----------- Power Ion Engine Engine Ion Engine Propulsion Aluminum Leg Leg Aluminum Leg Utility Small Storage Unit Device Improved Heat Sink Storage Small Storage Unit Processor Advanced Targeting Computer Protection Light Armor Plating Weapon Assault Rifle Energy Gun Particle Gun Energy Cannon Beam Cannon Ballistic Gun Assault Rifle Build | -11 -10 -10 -9 ------- Run | Yrd Mat Min Mat Slots Evolved 2 | . . . 2 Power . | . . . . Propulsion 1 | . . . 1 Utility 1 | . . . 1 Weapon . | . . . . Parts Attached 22 | 8 2 . 12 Power 3 | 1 . . 2 Engine 3 | 1 . . 2 Core . | . . . . Reactor . | . . . . Propulsion 5 | 2 . . 3 Treads . | . . . . Leg 5 | 2 . . 3 Wheel . | . . . . Hover . | . . . . Flight . | . . . . Utility 8 | 3 1 . 4 Device 3 | 1 1 . 1 Storage 3 | 2 . . 1 Processor 1 | . . . 1 Hackware . | . . . . Protection 1 | . . . 1 Artifact . | . . . . Weapon 6 | 2 1 . 3 Energy Gun 1 | . . . 1 Energy Cannon 1 | . 1 . . Ballistic Gun 4 | 2 . . 2 Ballistic Cannon . | . . . . Launcher . | . . . . Special Weapon . | . . . . Impact Weapon . | . . . . Slashing Weapon . | . . . . Piercing Weapon . | . . . . Special Melee Weapon . | . . . . Unidentified Prototypes . | . . . . Parts Lost 12 | . 1 1 10 Power 2 | . . 1 1 Propulsion 4 | . . . 4 Utility 3 | . 1 . 2 Weapon 3 | . . . 3 Highest Loss Streak 5 | . 1 1 5 To Critical Strikes . | . . . . Average Slot Usage (%) 88 | . 96 85 86 Engine 8 | . 14 . 6 Leg 30 | . 28 28 31 Device 8 | . 12 14 5 Storage 11 | . 14 14 10 Processor 2 | . . . 3 Protection 4 | . . . 6 Energy Gun 3 | . . . 5 Energy Cannon 5 | . 9 14 1 Ballistic Gun 13 | . 16 14 12 Peak Build Rating 16 | 7 10 10 16 Average Rating 10 | 5 7 9 12 On Entrance 6 | . 7 10 9 Naked Turns 11 | . . . 11 Heaviest Build 37 | 14 15 10 37 Greatest Support 33 | 20 20 20 33 Greatest Overweight (x) 2 | . . . 2 Average Overweight (x) . | . . . . Largest Inventory Capacity 15 | 8 8 8 15 Average Capacity 10 | 7 8 8 12 Most Carried 15 | 2 7 7 15 Average Carried 8 | . 4 7 11 Final Capacity 8 | 8 8 8 5 Final Carried 7 | 2 7 7 5 Class Distribution -------------------- 100% | Mutant Dominant Class ---------------- Mutant | -10/Materials Mutant | -10/Mines Mutant | -9/Materials Resources | -11 -10 -10 -9 ----------- Run | Yrd Mat Min Mat Matter Collected 538 | 298 55 7 178 Remotely . | . . . . Salvage Created 732 | 130 231 38 333 Parts 59 | 9 11 8 31 Haulers Intercepted 1 | . 1 . . Recyclers Shooed . | . . . . Parts Field Recycled . | . . . . Retrieved Matter . | . . . . Parts Self-Destructed . | . . . . Prevented . | . . . . Kills | -11 -10 -10 -9 ------- Run | Yrd Mat Min Mat Combat Hostiles Destroyed 15 | . 4 3 8 Guns 11 | . 2 1 8 Cannons 4 | . 2 2 . Classes Destroyed 8 | 2 2 1 3 Tunneler 2 | 2 . . . Hauler 1 | . 1 . . Recycler 1 | 1 . . . Watcher 3 | . . . 3 Swarmer 6 | . . 3 3 Grunt 6 | . 4 . 2 Brawler 1 | . . . 1 Sentry 2 | . . . 2 Best Kill Streak 3 | 1 3 2 3 Combat Bots Only 3 | . 2 2 3 Max Kills in Single Turn 1 | 1 1 1 1 Gunslinging . | . . . . Exploded . | . . . . Melee . | . . . . Uniques/NPCs Destroyed . | . . . . Combat | -11 -10 -10 -9 -------- Run | Yrd Mat Min Mat Hostile Shots Fired 166 | . 20 12 134 Missed 46 | . 4 2 40 Damage Taken 1297 | . 202 114 981 Core 244 | . 28 29 187 Absorbed by Shields 77 | . . . 77 Core Remaining (%) 88 | 100 . 77 . Volleys Fired 65 | 10 17 9 29 Largest 2 | 2 2 2 2 Hottest 85 | 40 80 80 85 Shots Fired 125 | 20 34 17 54 Gun 97 | 20 17 8 52 Cannon 28 | . 17 9 2 Launcher . | . . . . Special . | . . . . Kinetic 81 | 20 17 8 36 Thermal 44 | . 17 9 18 Explosive . | . . . . Electromagnetic . | . . . . Robot Hit Streak 9 | 6 7 2 9 Robot Miss Streak 5 | 1 2 2 5 Penetration Max . | . . . . Secondary Targets . | . . . . Shots Hit Robots 74 | 13 22 6 33 Core Hits 35 | 4 11 4 16 Critical Kills . | . . . . Critical Parts Destroyed . | . . . . Critical Strikes . | . . . . Melee Attacks . | . . . . Impact . | . . . . Slashing . | . . . . Piercing . | . . . . Sneak Attacks . | . . . . Combat Hostiles . | . . . . Follow-up Attacks . | . . . . Damage Inflicted 989 | 129 291 124 445 Guns 689 | 129 98 17 445 Cannons 300 | . 193 107 . Explosions . | . . . . Melee . | . . . . Ramming . | . . . . Kinetic 521 | 129 98 17 277 Thermal 468 | . 193 107 168 Explosive . | . . . . Electromagnetic . | . . . . Impact . | . . . . Slashing . | . . . . Piercing . | . . . . Highest Corruption 1 | . 1 1 . Average Corruption 1 | . 1 1 . Corruption Purged . | . . . . Corruption Blocked . | . . . . Effects 1 | . . 1 . Weapon Failures 1 | . . 1 . Overload Shots . | . . . . Overflow Damage . | . . . . Projectiles . | . . . . Explosions . | . . . . Melee . | . . . . Knockbacks . | . . . . Impact . | . . . . Kinetic . | . . . . Secondary . | . . . . Self-Inflicted Damage . | . . . . Shots . | . . . . Rammed . | . . . . Targets Rammed . | . . . . Kicked . | . . . . Crushed . | . . . . Highest Temperature 267 | . 267 16 175 Average Temperature 72 | . 99 2 61 Received Heat Transfer 361 | . 111 9 241 Effects 1 | . 1 . . Energy Bleed 1 | . 1 . . Siege Activations . | . . . . Robots Corrupted . | . . . . Combat Hostiles . | . . . . Parts Fried . | . . . . Impact Corruptions . | . . . . Robots Melted . | . . . . Combat Hostiles . | . . . . Parts Melted . | . . . . Heat Transferred 1036 | . 407 222 407 Parts Sabotaged . | . . . . Parts Stolen . | . . . . Parts Stripped . | . . . . Power Chain Reactions . | . . . . Alert | -11 -10 -10 -9 ------- Run | Yrd Mat Min Mat Peak Influence 252 | 15 96 146 252 Initial 56 | . 9 37 56 Average 93 | 4 48 78 130 Maximum Alert Level 1 | . . . 1 Low Security (%) 95 | 100 100 100 92 Level 1 4 | . . . 7 Level 2 . | . . . . Level 3 . | . . . . Level 4 . | . . . . Level 5 . | . . . . High Security . | . . . . Max Security . | . . . . Squads Dispatched 4 | . 1 . 3 Investigation 1 | . 1 . . Extermination . | . . . . Reinforcement 3 | . . . 3 Assault . | . . . . Garrison . | . . . . Intercept . | . . . . Searches Triggered . | . . . . Construction Impeded . | . . . . Haulers Reinforced . | . . . . Active Scanning Responses . | . . . . Cargo Convoy Interrupts . | . . . . Stealth | -11 -10 -10 -9 --------- Run | Yrd Mat Min Mat Distress Signals 2 | . . . 2 Communications Jammed . | . . . . Distress Signals . | . . . . Times Spotted 37 | . 7 6 24 Peak Tracking Total 11 | . 3 3 11 Tactical Retreats 2 | . . . 2 Traps | -11 -10 -10 -9 ------- Run | Yrd Mat Min Mat Traps Triggered . | . . . . Indirectly . | . . . . Trap Hack Attempts . | . . . . Triggered . | . . . . Disarmed . | . . . . Reprogrammed . | . . . . Reused . | . . . . Traps Extracted . | . . . . Installed . | . . . . Triggered . | . . . . Machines | -11 -10 -10 -9 ---------- Run | Yrd Mat Min Mat Machines Disabled 1 | . . 1 . Max in Single Turn 1 | . . 1 . Machines Repaired . | . . . . Machines Dismantled . | . . . . Machines Sabotaged . | . . . . Overloaded Fab Kills . | . . . . Hacking | -11 -10 -10 -9 --------- Run | Yrd Mat Min Mat Machines Accessed 2 | . 1 . 1 Terminals 2 | . 1 . 1 Fabricators . | . . . . Repair Stations . | . . . . Recycling Units . | . . . . Scanalyzers . | . . . . Garrison Access . | . . . . Total Hacks 7 | . 4 . 3 Successful 4 | . 2 . 2 Failed 3 | . 2 . 1 Catastrophic 1 | . 1 . . Database Lockouts . | . . . . Manual 7 | . 4 . 3 Terminals 7 | . 4 . 3 Fabricators . | . . . . Repair Stations . | . . . . Recycling Units . | . . . . Scanalyzers . | . . . . Garrison Access . | . . . . Terminal Hacks 2 | . 1 . 1 Robot Analysis 2 | . 1 . 1 Fabricator Hacks . | . . . . Repair Station Hacks . | . . . . Recycling Unit Hacks . | . . . . Scanalyzer . | . . . . Garrison Access Hacks . | . . . . Unauthorized Hacks 2 | . 1 . 1 Terminals 2 | . 1 . 1 Botnet 2 | . 1 . 1 Fabricators . | . . . . Repair Stations . | . . . . Recycling Units . | . . . . Scanalyzers . | . . . . Garrison Access . | . . . . Data Cores Recovered . | . . . . Used . | . . . . Hacking Detections 2 | . 1 . 1 Full Trace Events 1 | . 1 . . Feedback Events 1 | . 1 . . Corruption 1 | . 1 . . Feedback Blocked . | . . . . Robot Schematics Acquired . | . . . . Robots Built . | . . . . Authchips . | . . . . Time . | . . . . Total Robot Build Rating . | . . . . Part Schematics Acquired . | . . . . Parts Built . | . . . . Authchips . | . . . . Time . | . . . . Total Part Build Rating . | . . . . Parts Repaired . | . . . . Time . | . . . . Parts Recycled . | . . . . Recycled Matter . | . . . . Retrieved Matter . | . . . . Retrieved Components . | . . . . Parts Scanalyzed . | . . . . Part Schematics Acquired . | . . . . Parts Damaged . | . . . . Bothacking | -11 -10 -10 -9 ------------ Run | Yrd Mat Min Mat Used RIF Installer . | . . . . Robots Hacked . | . . . . Non-combat . | . . . . Combat . | . . . . Robot Hacks Applied . | . . . . Relay Couplers Released . | . . . . Fabnet Peak Effective % . | . . . . Robots Rewired . | . . . . Allies Hacked . | . . . . Hacks Repelled . | . . . . Allies | -11 -10 -10 -9 -------- Run | Yrd Mat Min Mat Total Allies 1 | . . 1 . Largest Group 1 | . . 1 1 Highest-Rated Group 31 | . . 31 31 Highest-Rated Ally 31 | . . 31 31 Total Orders . | . . . . Ally Attacks 14 | . . 12 2 Total Damage 103 | . . 63 40 Kills 2 | . . 1 1 Allies Corrupted . | . . . . Allies Melted . | . . . . Intel | -11 -10 -10 -9 ------- Run | Yrd Mat Min Mat Robot Analysis Total 2 | . 1 . 1 Derelict Logs Recovered . | . . . . Drone Launches . | . . . . Drone Recoveries . | . . . . Exploration | -11 -10 -10 -9 ------------- Run | Yrd Mat Min Mat Turns Passed 1124 | 113 266 101 644 Spaces Moved 658 | 61 172 59 366 Core 26 | 3 . . 23 Treads . | . . . . Legs 632 | 58 172 59 343 Wheels . | . . . . Hover . | . . . . Flight . | . . . . Fastest Speed 50 | 50 120 120 50 Average Speed 129 | 116 120 120 137 Slowest Speed 190 | 120 120 120 190 Overloaded Moves . | . . . . Propulsion Burnouts . | . . . . Robots Hopped . | . . . . Cave-ins Triggered . | . . . . Exploration Rate (%) 23 | 5 37 13 40 Regions Visited 3 Branch Regions 1 Pre-discovered Areas 1 | . . 1 . Known Exits Taken . | . . . . Unknown Exits Taken 3 | 1 1 1 . Scrap Searched . | . . . . Spaces Dug . | . . . . Terrain Destroyed . | . . . . Melee . | . . . . Projectile . | . . . . AOE . | . . . . Terrain Rammed . | . . . . Walls Destroyed . | . . . . Machines Disabled . | . . . . Actions | -11 -10 -10 -9 --------- Run | Yrd Mat Min Mat Total 814 | 82 201 73 458 Wait 34 | . 4 6 24 Move 655 | 60 171 58 366 Hop . | . . . . Pick Up 22 | 2 6 . 14 Fast Attach 13 | 8 . . 5 Attach 5 | . 2 . 3 Detach 4 | 1 1 . 2 Swap 4 | . . . 4 Drop 12 | 1 . . 11 Fire 65 | 10 17 9 29 Melee . | . . . . Ram . | . . . . Kick . | . . . . Crush . | . . . . Escape Stasis . | . . . . Rewire . | . . . . Trap . | . . . . Miscellaneous . | . . . . Route ------- -11/Scrapyard -10/Materials (discovered 2 exits: *Mat / [*Min]) -10/Mines -9/Materials History --------- Turn | Location | Event 2 | -11/Scrapyard | Met Revision 17 6 | -11/Scrapyard | Discovered new exit (range 16) 114 | -11/Scrapyard | Entered Materials 223 | -10/Materials | Discovered new exit (range 13) 303 | -10/Materials | Build established: Mutant 354 | -10/Materials | Discovered new exit (range 15) 380 | -10/Materials | Entered Mines 381 | -10/Mines | Assembled infested the area 393 | -10/Mines | Escorted by a lone wolf Derelict 413 | -10/Mines | Learned location of Storage (-8) 465 | -10/Mines | Discovered new exit (range 12) 481 | -10/Mines | Entered Materials 481 | -9/Materials | Accompanied by 1 ally 481 | -9/Materials | Evolved 2 slots: Propulsion x1, Utility x1 1081 | -9/Materials | Lost 5 parts (1p1n2u1w) 1125 | -9/Materials | Self-destructed Last Messages --------------- 01017_ K-01 Serf collects debris. 01038_ K-01 Serf cleans the Processing Tank. 01040_ Assault Rifle destroyed. 01043_ Aluminum Leg destroyed. 01046_ K-01 Serf cleans the Processing Tank. 01050_ Shield Generator destroyed. 01053_ O-16 Technician: "IFF HANDSHAKE FAILED. SECURING TERMINAL." 01054_ K-01 Serf cleans the Processing Tank. 01085_ ALERT: Hostiles spotted, dispatching reinforcements to Terminal M003. 01087_ U-05 Engineer works on Electrolysis Chamber. 01088_ Imp. Aluminum Leg destroyed. 01092_ U-05 Engineer works on Electrolysis Chamber. 01099_ U-05 Engineer completes Electrolysis Chamber. 01106_ Electrolysis Chamber comes online. 01111_ Particle Gun destroyed. 01113_ Aluminum Leg destroyed. 01114_ Dropped Lrg. Storage Unit. 01114_ Extracted 11 energy. Map ----- +----------------------------------------------------+ | | | | | | | | | | | | | | | | | | | | | | | | | | | ?????????????????????????????????? | | ?????????????????????????????????? | | ??????????????###############????? | | ??????????????# """ # !! #????? | | ????########### """ # !! #????? | | ????# ## """ # #????? | | ????# ## # #????? | | ????# #?? # #????? | | ????# #???? #? ?????? | | ????# #???###+####+###????? | | ????+ #???# s #????? | | ????# #???# #????? | | ????? #???# #####@###????? | | ??????? ?????# #?? ?????? | | ???????##+######## #?# """ #???? | | ########!!!!! #?# """ #???? | | [[! #?# """ #???? | | ######+#####?# #???? | | " #???" #?????# !#???? | | Y #?"T" /#?????########???? | | " #### #????????????????? | | #??# !!!#????????????????? | | #??# !!=#????????????????? | | """ #??# !!=#????????????????? | | """[ ###########????????????????? | | """ ??????????????????? | | ??????????????????? | | ??????????????????? | | #############????????????????????? | | #???????????????????????? | | #???????????????????????? | | #???????????????????????? | | " #???????????????????????? | | #???????????????????????? | | ? #???????????????????????? | | ? [ #???????????????????????? | | ?? #???????????????????????? | +----------------------------------------------------+ Best States ------------- Heat Dissipation 42 Energy Generation 12 Energy Capacity 265 Matter Stores 300 Matter Capacity 300 Sight Range 16 Terrain Scan Density 10 Armor Coverage 150 Evasion (%) 55 Targeting Accuracy 8 Item Schematics ----------------- None Robot Schematics ------------------ None Fabricated ------------ Nothing Alien Tech Used ----------------- None Achievements -------------- None Challenges ------------ None Game ------ Seed OpticalPhasingFilter Manual? 0 Play Time 00:17:36 Cumulative 132.0 hours Start 2024.09.05 @ 01:05:46 End 2024.09.05 @ 01:21:25 Sessions 1 Manual Loads 0 Difficulty Rogue Special Mode None Game No. 41 Rogue 22 Adventurer 17 Explorer 2 Win Type - Total 5 Types 4/0/1/0/0/0/0/0/0 Lore% 52 Gallery% 60 Achievement% 59 Wizard Run 0 Options --------- Layout 2 ASCII 0 Keyboard 1 Movement Vi Keybinds 0 Fullscreen 0 Font 20/SmallcapsGlow Map View 64x51 Zoom Use 0% Tactical HUD 1 Map Filters NONE Filters LOW_CONTRAST(13,24,33) Steam 1 RUN: 302e55ce-ec72-46df-bfde-042019290028